[Event "Early-Titled-Tuesday-Blitz-December-26-2023"]
[Site "Chess.com"]
[Date "2023.12.26"]
[Round "5"]
[White "Giantgoogachess"]
[Black "mightysmasher"]
[Result "0-1"]
[WhiteElo "2384"]
[BlackElo "2607"]
[TimeControl "180+1"]
[EndTime "8:57:01 PST"]
[Termination "mightysmasher won by checkmate"]

1. d4 {[%clk 0:02:07.2]} 1... d5 {[%clk 0:02:59.2]} 2. c4 {[%clk 0:02:06]} 2...
e6 {[%clk 0:02:58.8]} 3. Nc3 {[%clk 0:02:06.1]} 3... Be7 {[%clk 0:02:59]} 4.
cxd5 {[%clk 0:02:02.6]} 4... exd5 {[%clk 0:02:58.8]} 5. Bf4 {[%clk 0:02:03.2]}
5... Nf6 {[%clk 0:02:58.5]} 6. e3 {[%clk 0:02:02.7]} 6... O-O {[%clk 0:02:58.2]}
7. Bd3 {[%clk 0:02:01.8]} 7... c6 {[%clk 0:02:57.9]} 8. h3 {[%clk 0:02:00.7]}
8... Bd6 {[%clk 0:02:56.1]} 9. Bg5 {[%clk 0:01:56.1]} 9... h6 {[%clk 0:02:53.6]}
10. Bh4 {[%clk 0:01:56.1]} 10... g5 {[%clk 0:02:49.7]} 11. Bg3 {[%clk
0:01:55.8]} 11... Bxg3 {[%clk 0:02:49.4]} 12. fxg3 {[%clk 0:01:56.7]} 12... Qe7
{[%clk 0:02:49.4]} 13. Qf3 {[%clk 0:01:55.3]} 13... Re8 {[%clk 0:02:48]} 14.
Nge2 {[%clk 0:01:40.7]} 14... Nbd7 {[%clk 0:02:41]} 15. Kd2 {[%clk 0:01:39.2]}
15... Ne4+ {[%clk 0:02:27.9]} 16. Bxe4 {[%clk 0:01:38.2]} 16... dxe4 {[%clk
0:02:27.7]} 17. Qh5 {[%clk 0:01:38.7]} 17... Kg7 {[%clk 0:02:23.7]} 18. Raf1
{[%clk 0:01:23.6]} 18... Nf6 {[%clk 0:02:13.1]} 19. Rxf6 {[%clk 0:01:23.8]}
19... Qxf6 {[%clk 0:02:13.2]} 20. Ke1 {[%clk 0:01:21.9]} 20... Qg6 {[%clk
0:02:11.5]} 21. Qxg6+ {[%clk 0:01:21.5]} 21... Kxg6 {[%clk 0:02:11.5]} 22. g4
{[%clk 0:01:21]} 22... f5 {[%clk 0:02:11.1]} 23. gxf5+ {[%clk 0:01:20.5]} 23...
Bxf5 {[%clk 0:02:10.7]} 24. g4 {[%clk 0:01:21.4]} 24... Be6 {[%clk 0:02:09.6]}
25. Ng3 {[%clk 0:01:22.1]} 25... Bd5 {[%clk 0:02:04.3]} 26. h4 {[%clk
0:01:16.1]} 26... gxh4 {[%clk 0:01:55.3]} 27. Rxh4 {[%clk 0:01:15.3]} 27... Kg5
{[%clk 0:01:51.6]} 28. Rh2 {[%clk 0:01:05.6]} 28... Kxg4 {[%clk 0:01:48.5]} 29.
Nge2 {[%clk 0:01:04]} 29... Rf8 {[%clk 0:01:38.2]} 30. Rxh6 {[%clk 0:01:00.8]}
30... Rh8 {[%clk 0:01:33.2]} 31. Rg6+ {[%clk 0:00:59.2]} 31... Kf5 {[%clk
0:01:15.2]} 32. Rg7 {[%clk 0:00:58.7]} 32... b6 {[%clk 0:01:05.6]} 33. Rd7
{[%clk 0:00:56.7]} 33... Ke6 {[%clk 0:00:58.4]} 34. Rg7 {[%clk 0:00:56]} 34...
Rh1+ {[%clk 0:00:50.7]} 35. Kd2 {[%clk 0:00:55.8]} 35... Rh2 {[%clk 0:00:48.3]}
36. Rg6+ {[%clk 0:00:51.7]} 36... Kf7 {[%clk 0:00:46.2]} 37. Rd6 {[%clk
0:00:51.3]} 37... Ke7 {[%clk 0:00:40.6]} 38. Rg6 {[%clk 0:00:49.7]} 38... Rf8
{[%clk 0:00:40]} 39. b3 {[%clk 0:00:47.2]} 39... b5 {[%clk 0:00:37]} 40. Kc1
{[%clk 0:00:34.1]} 40... b4 {[%clk 0:00:34]} 41. Nxd5+ {[%clk 0:00:34.4]} 41...
cxd5 {[%clk 0:00:34.1]} 42. Nf4 {[%clk 0:00:35.3]} 42... Rxa2 {[%clk 0:00:25.5]}
43. Nxd5+ {[%clk 0:00:35]} 43... Kd7 {[%clk 0:00:24.1]} 44. Rg7+ {[%clk
0:00:32.3]} 44... Kd6 {[%clk 0:00:21.9]} 45. Nf4 {[%clk 0:00:28.6]} 45... Rh8
{[%clk 0:00:19.9]} 46. Kb1 {[%clk 0:00:19.4]} 46... Rf2 {[%clk 0:00:16.6]} 47.
Rg6+ {[%clk 0:00:18.7]} 47... Ke7 {[%clk 0:00:15.5]} 48. Rg1 {[%clk 0:00:17.2]}
48... Rhh2 {[%clk 0:00:14.9]} 49. Nd5+ {[%clk 0:00:13.5]} 49... Kf7 {[%clk
0:00:14.5]} 50. Nxb4 {[%clk 0:00:14.4]} 50... Rb2+ {[%clk 0:00:13.8]} 51. Ka1
{[%clk 0:00:15.1]} 51... Rxb3 {[%clk 0:00:14]} 52. Nd5 {[%clk 0:00:10.7]} 52...
Ra3+ {[%clk 0:00:13.8]} 53. Kb1 {[%clk 0:00:10.9]} 53... Rha2 {[%clk 0:00:12.6]}
54. Rg4 {[%clk 0:00:05.6]} 54... Ra1+ {[%clk 0:00:08.6]} 55. Kb2 {[%clk
0:00:05.8]} 55... R1a2+ {[%clk 0:00:08.9]} 56. Kb1 {[%clk 0:00:06.2]} 56... Rh2
{[%clk 0:00:09.5]} 57. Rxe4 {[%clk 0:00:05.2]} 57... a5 {[%clk 0:00:09.7]} 58.
Nf4 {[%clk 0:00:03.3]} 58... Kf6 {[%clk 0:00:09.6]} 59. d5 {[%clk 0:00:03.6]}
59... Kf5 {[%clk 0:00:09.6]} 60. Re8 {[%clk 0:00:03.6]} 60... Ra4 {[%clk
0:00:08.1]} 61. d6 {[%clk 0:00:03.5]} 61... Rb4+ {[%clk 0:00:08.5]} 62. Ka1
{[%clk 0:00:03.1]} 62... Rb6 {[%clk 0:00:08]} 63. d7 {[%clk 0:00:03.3]} 63...
Rc6 {[%clk 0:00:07.9]} 64. d8=Q {[%clk 0:00:02.2]} 64... Rc1# {[%clk 0:00:07.9]}
0-1

[Event "Early-Titled-Tuesday-Blitz-December-26-2023"]
[Site "Chess.com"]
[Date "2023.12.26"]
[Round "5"]
[White "szefru"]
[Black "aksuliini1"]
[Result "1-0"]
[WhiteElo "2275"]
[BlackElo "2467"]
[TimeControl "180+1"]
[EndTime "8:57:05 PST"]
[Termination "szefru won by checkmate"]

1. e4 {[%clk 0:03:00.9]} 1... c6 {[%clk 0:02:59.2]} 2. d4 {[%clk 0:02:57.6]}
2... d5 {[%clk 0:03:00.1]} 3. exd5 {[%clk 0:02:57.4]} 3... cxd5 {[%clk 0:03:01]}
4. c3 {[%clk 0:02:55.3]} 4... Bf5 {[%clk 0:02:49.9]} 5. Ne2 {[%clk 0:02:47]}
5... Nc6 {[%clk 0:02:48.5]} 6. Ng3 {[%clk 0:02:46.9]} 6... Bg6 {[%clk
0:02:47.9]} 7. h4 {[%clk 0:02:46.6]} 7... h6 {[%clk 0:02:40.7]} 8. h5 {[%clk
0:02:46.2]} 8... Bh7 {[%clk 0:02:41]} 9. Bd3 {[%clk 0:02:46.2]} 9... Bxd3 {[%clk
0:02:38.7]} 10. Qxd3 {[%clk 0:02:47.1]} 10... e6 {[%clk 0:02:38.2]} 11. O-O
{[%clk 0:02:45.5]} 11... Bd6 {[%clk 0:02:36.8]} 12. Be3 {[%clk 0:02:37.5]} 12...
Qh4 {[%clk 0:02:29.1]} 13. Bd2 {[%clk 0:02:33.1]} 13... Nf6 {[%clk 0:02:21.3]}
14. Na3 {[%clk 0:02:26.3]} 14... Ng4 {[%clk 0:02:18.6]} 15. Rfe1 {[%clk
0:02:22.6]} 15... O-O {[%clk 0:01:37]} 16. Qf3 {[%clk 0:02:14.7]} 16... Bxg3
{[%clk 0:01:22.1]} 17. Qxg3 {[%clk 0:02:14.7]} 17... Qxg3 {[%clk 0:01:21.5]} 18.
fxg3 {[%clk 0:02:15.6]} 18... Nf6 {[%clk 0:01:21.7]} 19. Nb5 {[%clk 0:01:57.1]}
19... Rfd8 {[%clk 0:01:14.9]} 20. Rf1 {[%clk 0:01:53.4]} 20... Nxh5 {[%clk
0:01:13.5]} 21. Kh2 {[%clk 0:01:52]} 21... Nf6 {[%clk 0:01:12.6]} 22. Kh3 {[%clk
0:01:51.9]} 22... Ne4 {[%clk 0:01:12.2]} 23. Be3 {[%clk 0:01:49.3]} 23... a6
{[%clk 0:01:11.8]} 24. Na3 {[%clk 0:01:49.2]} 24... b5 {[%clk 0:01:08.2]} 25.
Nc2 {[%clk 0:01:49]} 25... Rab8 {[%clk 0:01:04.9]} 26. a3 {[%clk 0:01:48.6]}
26... Na5 {[%clk 0:01:04.8]} 27. Rae1 {[%clk 0:01:47]} 27... Nc4 {[%clk
0:01:03.3]} 28. Bc1 {[%clk 0:01:46.1]} 28... a5 {[%clk 0:00:59.7]} 29. Rf4
{[%clk 0:01:25.9]} 29... f6 {[%clk 0:00:56.6]} 30. b4 {[%clk 0:01:09.7]} 30...
Kf7 {[%clk 0:00:51.4]} 31. Rf3 {[%clk 0:01:04.3]} 31... a4 {[%clk 0:00:49.2]}
32. Re2 {[%clk 0:00:51.5]} 32... Rbc8 {[%clk 0:00:36.5]} 33. Ne1 {[%clk
0:00:50.7]} 33... Ncd6 {[%clk 0:00:33]} 34. Ree3 {[%clk 0:00:50.7]} 34... Nf5
{[%clk 0:00:32.2]} 35. Rd3 {[%clk 0:00:51.1]} 35... g5 {[%clk 0:00:29.6]} 36. g4
{[%clk 0:00:49.6]} 36... Nfd6 {[%clk 0:00:29.6]} 37. Rfe3 {[%clk 0:00:43.7]}
37... Nc4 {[%clk 0:00:29]} 38. Rf3 {[%clk 0:00:43.9]} 38... Rc6 {[%clk
0:00:28.8]} 39. g3 {[%clk 0:00:26.4]} 39... Rdc8 {[%clk 0:00:28.5]} 40. Ng2
{[%clk 0:00:25.8]} 40... Ncd6 {[%clk 0:00:28.5]} 41. Bb2 {[%clk 0:00:25.5]}
41... Nc4 {[%clk 0:00:26.6]} 42. Bc1 {[%clk 0:00:24.9]} 42... e5 {[%clk
0:00:25.2]} 43. Ne1 {[%clk 0:00:11.3]} 43... Ke6 {[%clk 0:00:23.7]} 44. Rf5
{[%clk 0:00:08.9]} 44... Ncd6 {[%clk 0:00:22.9]} 45. dxe5 {[%clk 0:00:05.5]}
45... Nxf5 {[%clk 0:00:21]} 46. gxf5+ {[%clk 0:00:06.4]} 46... Kxf5 {[%clk
0:00:21.8]} 47. exf6 {[%clk 0:00:06]} 47... Nxf6 {[%clk 0:00:20.6]} 48. Rf3+
{[%clk 0:00:04.4]} 48... Kg6 {[%clk 0:00:19.9]} 49. Bb2 {[%clk 0:00:04.2]} 49...
Ne4 {[%clk 0:00:19.8]} 50. Rd3 {[%clk 0:00:02.5]} 50... Nxc3 {[%clk 0:00:18.5]}
51. Bxc3 {[%clk 0:00:02.9]} 51... Rxc3 {[%clk 0:00:19.4]} 52. Rxd5 {[%clk
0:00:03.8]} 52... Rxa3 {[%clk 0:00:19.7]} 53. Rxb5 {[%clk 0:00:04.5]} 53... Rcc3
{[%clk 0:00:19.2]} 54. Rb6+ {[%clk 0:00:05]} 54... Kg7 {[%clk 0:00:19.3]} 55.
Kg4 {[%clk 0:00:05.2]} 55... Rxg3+ {[%clk 0:00:18.7]} 56. Kf5 {[%clk 0:00:05.7]}
56... Rge3 {[%clk 0:00:11.3]} 57. Rb7+ {[%clk 0:00:06.6]} 57... Kf8 {[%clk
0:00:10.8]} 58. Nc2 {[%clk 0:00:06.7]} 58... Rf3+ {[%clk 0:00:09.7]} 59. Kg6
{[%clk 0:00:07.1]} 59... Rac3 {[%clk 0:00:09.6]} 60. Nd4 {[%clk 0:00:07.4]}
60... Rfd3 {[%clk 0:00:08.4]} 61. Ne6+ {[%clk 0:00:06.6]} 61... Ke8 {[%clk
0:00:08.7]} 62. Kf6 {[%clk 0:00:07.1]} 62... Rc8 {[%clk 0:00:06.9]} 63. Re7#
{[%clk 0:00:05.6]} 1-0

[Event "Early-Titled-Tuesday-Blitz-December-26-2023"]
[Site "Chess.com"]
[Date "2023.12.26"]
[Round "5"]
[White "Alexei_Gubajdullin"]
[Black "rezamahdavi2008"]
[Result "0-1"]
[WhiteElo "2665"]
[BlackElo "2872"]
[TimeControl "180+1"]
[EndTime "8:57:19 PST"]
[Termination "rezamahdavi2008 won by resignation"]

1. d4 {[%clk 0:03:00]} 1... Nf6 {[%clk 0:03:00]} 2. Nf3 {[%clk 0:02:59.9]} 2...
e6 {[%clk 0:03:00.4]} 3. Bf4 {[%clk 0:02:58.8]} 3... c5 {[%clk 0:02:58.9]} 4. e3
{[%clk 0:02:58.7]} 4... Nc6 {[%clk 0:02:58.2]} 5. Nbd2 {[%clk 0:02:58.5]} 5...
d5 {[%clk 0:02:57.9]} 6. c3 {[%clk 0:02:58.2]} 6... h6 {[%clk 0:02:58.3]} 7. Bb5
{[%clk 0:02:56.8]} 7... Bd6 {[%clk 0:02:58.8]} 8. Bxd6 {[%clk 0:02:54.7]} 8...
Qxd6 {[%clk 0:02:59.7]} 9. Ne5 {[%clk 0:02:54.7]} 9... O-O {[%clk 0:02:58.4]}
10. Bxc6 {[%clk 0:02:54]} 10... bxc6 {[%clk 0:02:59.3]} 11. Qa4 {[%clk
0:02:53.9]} 11... cxd4 {[%clk 0:02:55.7]} 12. cxd4 {[%clk 0:02:53.7]} 12... c5
{[%clk 0:02:55.4]} 13. Qa3 {[%clk 0:02:53.3]} 13... Ba6 {[%clk 0:02:41.8]} 14.
Nb3 {[%clk 0:02:41.6]} 14... Rfb8 {[%clk 0:01:58.6]} 15. Nxc5 {[%clk 0:02:37.8]}
15... Rb6 {[%clk 0:01:57.3]} 16. f3 {[%clk 0:02:31.1]} 16... Rab8 {[%clk
0:01:53.7]} 17. b3 {[%clk 0:02:30.7]} 17... Ne8 {[%clk 0:01:49.5]} 18. Ned7
{[%clk 0:02:25.3]} 18... Nc7 {[%clk 0:01:47.2]} 19. Nxb8 {[%clk 0:02:17.4]}
19... Rxb8 {[%clk 0:01:48.1]} 20. f4 {[%clk 0:02:11.7]} 20... Rb6 {[%clk
0:01:38.7]} 21. Kf2 {[%clk 0:02:10.2]} 21... Ne8 {[%clk 0:01:37.9]} 22. Rhc1
{[%clk 0:02:06.5]} 22... Nf6 {[%clk 0:01:38.3]} 23. Qa5 {[%clk 0:02:02.9]} 23...
Ng4+ {[%clk 0:01:34.9]} 24. Kf3 {[%clk 0:02:01.2]} 24... Nf6 {[%clk 0:01:07.9]}
25. a4 {[%clk 0:01:30.6]} 25... Ne4 {[%clk 0:01:02.9]} 26. Nxa6 {[%clk
0:01:02.9]} 26... Rxa6 {[%clk 0:00:53.4]} 27. Qc7 {[%clk 0:01:02]} 27... Nd2+
{[%clk 0:00:38.3]} 28. Ke2 {[%clk 0:01:01.6]} 28... Nxb3 {[%clk 0:00:38.8]} 29.
Qxd6 {[%clk 0:00:53.7]} 29... Nxc1+ {[%clk 0:00:38.8]} 30. Rxc1 {[%clk
0:00:53.5]} 30... Rxd6 {[%clk 0:00:39.7]} 31. Rc8+ {[%clk 0:00:53.1]} 31... Kh7
{[%clk 0:00:40.3]} 32. Rc7 {[%clk 0:00:52.2]} 32... Ra6 {[%clk 0:00:40.7]} 33.
Rxf7 {[%clk 0:00:51.9]} 33... Rxa4 {[%clk 0:00:41.4]} 34. h4 {[%clk 0:00:49.5]}
34... Kg6 {[%clk 0:00:41.4]} 35. Rb7 {[%clk 0:00:48.9]} 35... h5 {[%clk
0:00:39.4]} 36. Kf3 {[%clk 0:00:46.4]} 36... Kf6 {[%clk 0:00:39.2]} 37. Rb8
{[%clk 0:00:42.5]} 37... Ra1 {[%clk 0:00:39.6]} 38. Rf8+ {[%clk 0:00:40.2]}
38... Kg6 {[%clk 0:00:40.1]} 39. Re8 {[%clk 0:00:39.4]} 39... Kf7 {[%clk
0:00:40.7]} 40. Rh8 {[%clk 0:00:38.6]} 40... g6 {[%clk 0:00:40.9]} 41. Rh7+
{[%clk 0:00:38.2]} 41... Kf6 {[%clk 0:00:41.2]} 42. Rb7 {[%clk 0:00:37.8]} 42...
a5 {[%clk 0:00:41.4]} 43. Ra7 {[%clk 0:00:37.5]} 43... a4 {[%clk 0:00:42]} 44.
Kg3 {[%clk 0:00:32.6]} 44... a3 {[%clk 0:00:42.6]} 45. Ra6 {[%clk 0:00:31.9]}
45... Kf5 {[%clk 0:00:31.7]} 46. Kf2 {[%clk 0:00:24.1]} 46... a2 {[%clk
0:00:29]} 47. Kg3 {[%clk 0:00:22.9]} 47... Re1 {[%clk 0:00:27.2]} 48. Rxa2
{[%clk 0:00:21.8]} 48... Rxe3+ {[%clk 0:00:27.8]} 49. Kf2 {[%clk 0:00:20.5]}
49... Kxf4 {[%clk 0:00:28.4]} 50. Ra8 {[%clk 0:00:20]} 50... Rd3 {[%clk
0:00:20.5]} 51. Rh8 {[%clk 0:00:18]} 51... Rd2+ {[%clk 0:00:20.1]} 52. Kf1
{[%clk 0:00:17.1]} 52... Rxd4 {[%clk 0:00:15.1]} 53. Rg8 {[%clk 0:00:14.5]}
53... Kf5 {[%clk 0:00:14.8]} 54. Kf2 {[%clk 0:00:12.8]} 54... Rxh4 {[%clk
0:00:14.2]} 55. Rf8+ {[%clk 0:00:12.3]} 55... Ke5 {[%clk 0:00:14.4]} 56. Kg3
{[%clk 0:00:12]} 56... Rg4+ {[%clk 0:00:14.5]} 57. Kf3 {[%clk 0:00:12.3]} 57...
Rg5 {[%clk 0:00:14.6]} 58. Ra8 {[%clk 0:00:12.1]} 58... Rf5+ {[%clk 0:00:15]}
59. Kg3 {[%clk 0:00:11.9]} 59... g5 {[%clk 0:00:15.8]} 60. Ra1 {[%clk
0:00:10.9]} 60... Rf4 {[%clk 0:00:15.6]} 61. Re1+ {[%clk 0:00:10.5]} 61... Re4
{[%clk 0:00:16]} 62. Rh1 {[%clk 0:00:10.1]} 62... h4+ {[%clk 0:00:15.1]} 63. Kh2
{[%clk 0:00:10.1]} 63... g4 {[%clk 0:00:15.2]} 64. Ra1 {[%clk 0:00:09.5]} 64...
Re2 {[%clk 0:00:15.7]} 65. Kh1 {[%clk 0:00:09.4]} 65... h3 {[%clk 0:00:14.8]}
66. g3 {[%clk 0:00:05.7]} 66... d4 {[%clk 0:00:13.2]} 67. Ra4 {[%clk 0:00:05.1]}
67... d3 {[%clk 0:00:12.7]} 68. Rxg4 {[%clk 0:00:02]} 68... d2 {[%clk
0:00:13.1]} 69. Rg5+ {[%clk 0:00:01.7]} 69... Kf6 {[%clk 0:00:13.3]} 0-1

[Event "Early-Titled-Tuesday-Blitz-December-26-2023"]
[Site "Chess.com"]
[Date "2023.12.26"]
[Round "5"]
[White "Evgeny81"]
[Black "tetrix83"]
[Result "1-0"]
[WhiteElo "2769"]
[BlackElo "2574"]
[TimeControl "180+1"]
[EndTime "8:57:21 PST"]
[Termination "Evgeny81 won on time"]

1. d4 {[%clk 0:03:00.9]} 1... Nf6 {[%clk 0:02:59.4]} 2. c4 {[%clk 0:03:01.5]}
2... g6 {[%clk 0:02:58.8]} 3. Nc3 {[%clk 0:03:01.9]} 3... Bg7 {[%clk 0:02:59.3]}
4. e4 {[%clk 0:03:02.2]} 4... O-O {[%clk 0:02:59.2]} 5. Nf3 {[%clk 0:03:02.5]}
5... d6 {[%clk 0:02:59.6]} 6. Be2 {[%clk 0:03:02.9]} 6... e5 {[%clk 0:02:59.7]}
7. d5 {[%clk 0:03:03.2]} 7... a5 {[%clk 0:02:59.1]} 8. h3 {[%clk 0:03:02.6]}
8... Na6 {[%clk 0:02:59.2]} 9. Bg5 {[%clk 0:03:02.7]} 9... h6 {[%clk 0:02:57.4]}
10. Be3 {[%clk 0:03:01.5]} 10... Nh7 {[%clk 0:02:30.6]} 11. h4 {[%clk
0:02:54.4]} 11... Bg4 {[%clk 0:02:16.3]} 12. Ng1 {[%clk 0:02:41.2]} 12... Bxe2
{[%clk 0:02:03.5]} 13. Qxe2 {[%clk 0:02:40.8]} 13... f5 {[%clk 0:02:04]} 14. h5
{[%clk 0:02:40.8]} 14... f4 {[%clk 0:01:57.2]} 15. hxg6 {[%clk 0:02:38.5]} 15...
Ng5 {[%clk 0:01:57]} 16. Bd2 {[%clk 0:02:32.3]} 16... Qf6 {[%clk 0:01:54.8]} 17.
Nf3 {[%clk 0:02:20.4]} 17... Qxg6 {[%clk 0:01:46.7]} 18. O-O-O {[%clk
0:02:16.8]} 18... Nc5 {[%clk 0:01:35.9]} 19. Nxg5 {[%clk 0:01:54.3]} 19... hxg5
{[%clk 0:01:35.3]} 20. f3 {[%clk 0:01:51.4]} 20... Rf7 {[%clk 0:00:41.6]} 21.
Be1 {[%clk 0:01:47.4]} 21... Kf8 {[%clk 0:00:39.5]} 22. Bf2 {[%clk 0:01:46.4]}
22... b6 {[%clk 0:00:38.9]} 23. Nb5 {[%clk 0:01:42.4]} 23... Na6 {[%clk
0:00:35.4]} 24. b3 {[%clk 0:01:26.4]} 24... Bf6 {[%clk 0:00:30.2]} 25. a3 {[%clk
0:01:20.5]} 25... Rh7 {[%clk 0:00:29.8]} 26. Kc2 {[%clk 0:01:16.6]} 26... Ke7
{[%clk 0:00:28]} 27. Rdg1 {[%clk 0:01:01.9]} 27... g4 {[%clk 0:00:26.3]} 28.
Rxh7+ {[%clk 0:00:51.8]} 28... Qxh7 {[%clk 0:00:25.6]} 29. fxg4 {[%clk
0:00:52.5]} 29... Rg8 {[%clk 0:00:20.9]} 30. g3 {[%clk 0:00:52.6]} 30... Qh2
{[%clk 0:00:14.3]} 31. Qf3 {[%clk 0:00:47.9]} 31... fxg3 {[%clk 0:00:10.9]} 32.
Rxg3 {[%clk 0:00:45.8]} 32... Bg5 {[%clk 0:00:10]} 33. Rh3 {[%clk 0:00:41.5]}
33... Qf4 {[%clk 0:00:09.3]} 34. Rh7+ {[%clk 0:00:40.9]} 34... Kd8 {[%clk
0:00:09.2]} 35. Qxf4 {[%clk 0:00:40.4]} 35... Bxf4 {[%clk 0:00:10.1]} 36. Rh4
{[%clk 0:00:19.5]} 36... Bg5 {[%clk 0:00:09.1]} 37. Rh2 {[%clk 0:00:18.2]} 37...
Rf8 {[%clk 0:00:09.3]} 38. Na7 {[%clk 0:00:11]} 38... Nc5 {[%clk 0:00:07.2]} 39.
Nc6+ {[%clk 0:00:10.7]} 39... Kc8 {[%clk 0:00:07.3]} 40. Bxc5 {[%clk 0:00:10]}
40... bxc5 {[%clk 0:00:06.9]} 41. Rh5 {[%clk 0:00:07.8]} 41... Rf2+ {[%clk
0:00:06]} 42. Kd1 {[%clk 0:00:07.2]} 42... Bf4 {[%clk 0:00:03.2]} 43. Rh8+
{[%clk 0:00:06.8]} 43... Kb7 {[%clk 0:00:03.6]} 44. Rb8+ {[%clk 0:00:06.8]}
44... Ka6 {[%clk 0:00:03.9]} 45. Ra8+ {[%clk 0:00:07.1]} 45... Kb7 {[%clk
0:00:04.1]} 46. Rb8+ {[%clk 0:00:05.8]} 46... Ka6 {[%clk 0:00:04.3]} 47. Ra8+
{[%clk 0:00:06]} 47... Kb7 {[%clk 0:00:04.6]} 48. Rxa5 {[%clk 0:00:06.8]} 48...
Rd2+ {[%clk 0:00:03.1]} 49. Ke1 {[%clk 0:00:06.7]} 49... Rb2 {[%clk 0:00:01.9]}
50. Rb5+ {[%clk 0:00:06.8]} 50... Ka6 {[%clk 0:00:02.2]} 51. Nb8+ {[%clk
0:00:06.6]} 51... Ka7 {[%clk 0:00:02]} 52. Nc6+ {[%clk 0:00:07.5]} 52... Ka6
{[%clk 0:00:02.5]} 53. b4 {[%clk 0:00:07.7]} 53... Rg2 {[%clk 0:00:01.5]} 54.
bxc5 {[%clk 0:00:07]} 54... dxc5 {[%clk 0:00:02.4]} 55. Nb8+ {[%clk 0:00:07.6]}
55... Ka7 {[%clk 0:00:02.3]} 56. Nc6+ {[%clk 0:00:08.3]} 56... Ka6 {[%clk
0:00:03.2]} 57. Rxc5 {[%clk 0:00:08.5]} 57... Rxg4 {[%clk 0:00:02.7]} 58. Ra5+
{[%clk 0:00:07.7]} 58... Kb6 {[%clk 0:00:02.5]} 59. Rb5+ {[%clk 0:00:08.4]}
59... Ka6 {[%clk 0:00:02.5]} 60. Nb4+ {[%clk 0:00:08.9]} 60... Ka7 {[%clk
0:00:02.1]} 61. Nc6+ {[%clk 0:00:09.8]} 61... Ka6 {[%clk 0:00:02.5]} 62. Ke2
{[%clk 0:00:08]} 62... Rg3 {[%clk 0:00:02.5]} 63. Nb4+ {[%clk 0:00:07.9]} 63...
Ka7 {[%clk 0:00:02.3]} 64. Nc6+ {[%clk 0:00:08.3]} 64... Ka6 {[%clk 0:00:03.2]}
65. a4 {[%clk 0:00:06.6]} 65... Re3+ {[%clk 0:00:02.8]} 66. Kf2 {[%clk
0:00:06.9]} 66... Rxe4 {[%clk 0:00:03.1]} 67. Nb4+ {[%clk 0:00:07.1]} 67... Ka7
{[%clk 0:00:03]} 68. Nc6+ {[%clk 0:00:07.6]} 68... Ka6 {[%clk 0:00:03.4]} 69.
Ra5+ {[%clk 0:00:06]} 69... Kb7 {[%clk 0:00:02.9]} 70. c5 {[%clk 0:00:06.5]} 1-0